bitfinex/quotes_BTCUSD_20250822
["timestamp","ask_amount","ask_price","bid_price","bid_amount"]
[1755841674711,0.18162627,113500.0,113490.0,0.07093439]
[1755841674914,0.68990287,113500.0,113490.0,0.07093439]
[1755841675121,2.35284687,113500.0,113490.0,0.07093439]
[1755841675325,0.18990282,113500.0,113490.0,0.07093439]
[1755841675880,0.18990282,113500.0,113490.0,0.07802783]
[1755841678224,0.18990282,113500.0,113490.0,0.07093439]
[1755841682249,0.19611122,113500.0,113490.0,0.07093439]
[1755841682992,0.18783471,113500.0,113490.0,0.07093439]
[1755841683199,0.19611294,113500.0,113490.0,0.07093439]
[1755841683599,0.19611329,113500.0,113490.0,0.07093439]
[1755841685425,0.19611429,113500.0,113490.0,0.07093439]
[1755841685647,0.19595429,113500.0,113490.0,0.07093439]
[1755841688807,0.19596176,113500.0,113490.0,0.07093439]
[1755841690418,0.19596176,113500.0,113490.0,0.07802783]
[1755841692334,0.04736176,113500.0,113490.0,0.07802783]
[1755841692535,0.18971304,113500.0,113490.0,0.07802783]
[1755841692742,0.16235488,113500.0,113490.0,0.07802783]
[1755841693141,0.14856,113500.0,113490.0,0.07802783]
[1755841694503,0.14856,113500.0,113490.0,0.08002783]
[1755841695906,0.16235379,113500.0,113490.0,0.08002783]
[1755841698342,0.01379379,113500.0,113490.0,0.08002783]
[1755841698493,0.16235379,113500.0,113490.0,0.08002783]
[1755841701015,0.01379379,113500.0,113490.0,0.08002783]
[1755841701860,0.01379379,113500.0,113490.0,0.09747685]
[1755841702066,0.01379379,113500.0,113490.0,0.10188251]
[1755841702265,0.01379379,113500.0,113490.0,0.09747685]
[1755841715331,0.01379379,113500.0,113490.0,0.09967968]
[1755841715530,0.01379379,113500.0,113490.0,0.09747685]
[1755841717980,0.01379379,113500.0,113490.0,0.09967968]
[1755841719139,0.01379379,113500.0,113490.0,0.24819968]
[1755841719383,0.01379379,113500.0,113490.0,0.24599685]
[1755841720638,0.34,113510.0,113490.0,0.24599685]
[1755841720788,0.34,113510.0,113490.0,0.24295685]
[1755841720995,0.34,113510.0,113500.0,0.00295]
[1755841721383,0.34,113510.0,113490.0,0.21742685]
[1755841721577,0.34,113510.0,113500.0,0.026502]
[1755841721918,0.34,113510.0,113500.0,0.09030928]
[1755841722082,0.34,113510.0,113500.0,0.09325928]
[1755841722281,0.34,113510.0,113500.0,0.09532928]
[1755841723461,0.35379179,113510.0,113500.0,0.09532928]
[1755841723908,0.35379179,113510.0,113500.0,0.09632928]
[1755841725459,0.35379179,113510.0,113500.0,0.09532928]
[1755841726097,0.35379179,113510.0,113500.0,0.09632928]
[1755841726486,0.35379179,113510.0,113500.0,0.09532928]
[1755841726686,0.35379179,113510.0,113500.0,0.09632928]
[1755841726907,0.01379179,113510.0,113500.0,0.09832928]
[1755841727111,0.01379179,113510.0,113500.0,0.10053192]
[1755841729569,0.34014449,113520.0,113510.0,0.03941439]
[1755841729771,0.34014449,113520.0,113510.0,0.04946758]
[1755841730319,0.34014449,113520.0,113510.0,0.07596958]
[1755841730780,0.34014449,113520.0,113510.0,0.07696958]
[1755841731208,0.35393591,113520.0,113510.0,0.07696958]
[1755841731953,0.35393591,113520.0,113510.0,0.08009958]
[1755841734907,0.35393591,113520.0,113510.0,0.07696958]
[1755841735111,0.35393591,113520.0,113510.0,0.08009958]
[1755841735907,0.34014449,113520.0,113510.0,0.08009958]
[1755841739047,0.35393574,113520.0,113510.0,0.08009958]
[1755841740501,0.35393574,113520.0,113510.0,0.08207958]
[1755841740701,0.35393574,113520.0,113510.0,0.08009958]
[1755841740922,0.35393574,113520.0,113510.0,0.07696958]
[1755841741132,0.35393574,113520.0,113510.0,0.08009958]
[1755841741332,0.35393574,113520.0,113510.0,0.07696958]
[1755841742414,0.35393574,113520.0,113510.0,0.06691639]
[1755841743827,0.35393574,113520.0,113510.0,0.07004639]
[1755841745796,0.35393574,113520.0,113510.0,0.06691639]
[1755841747892,0.35393574,113520.0,113510.0,0.07004639]
[1755841750618,0.35393574,113520.0,113510.0,0.06691639]
[1755841751243,0.35393574,113520.0,113510.0,0.08340412]
[1755841752688,0.35393574,113520.0,113510.0,0.06691639]
[1755841756212,0.36221585,113520.0,113510.0,0.06691639]
[1755841756829,0.35393574,113520.0,113510.0,0.06691639]
[1755841757035,0.36221564,113520.0,113510.0,0.06691639]
[1755841757451,0.36221565,113520.0,113510.0,0.06691639]
[1755841766076,0.01379125,113520.0,113510.0,0.06691639]
[1755841766426,0.02206862,113520.0,113510.0,0.06691639]
[1755841766578,0.02206849,113520.0,113510.0,0.06691639]
[1755841768162,0.36206849,113520.0,113510.0,0.06691639]
[1755841769386,0.36206835,113520.0,113510.0,0.06691639]
[1755841775451,0.35379125,113520.0,113510.0,0.06691639]
[1755841775657,0.35379125,113520.0,113510.0,0.07013639]
[1755841775658,0.36206882,113520.0,113510.0,0.07013639]
[1755841776320,0.36206882,113520.0,113510.0,0.07226639]
[1755841781469,0.38114433,113520.0,113510.0,0.07226639]
[1755841781816,0.51046882,113520.0,113510.0,0.08653683]
[1755841784223,0.36206882,113520.0,113510.0,0.08653683]
[1755841784879,0.35379125,113520.0,113510.0,0.08653683]
[1755841785137,0.2162,113530.0,113510.0,0.08653683]
[1755841785324,2.89822119,113530.0,113520.0,0.03941439]
[1755841785536,0.18196656,113530.0,113520.0,0.05341807]
[1755841785764,0.67668048,113530.0,113520.0,0.05341807]
[1755841785982,2.85870068,113530.0,113520.0,0.05341807]
[1755841786202,0.19575668,113530.0,113520.0,0.05341807]
[1755841786413,0.69675668,113530.0,113520.0,0.05341807]
[1755841786670,2.85870068,113530.0,113520.0,0.07992007]
[1755841786864,0.19675668,113530.0,113520.0,0.07992007]
[1755841787076,1.03675668,113530.0,113520.0,0.07992007]
[1755841787311,2.69970068,113530.0,113520.0,0.07992007]
[1755841787529,0.53675668,113530.0,113520.0,0.07992007]
[1755841787736,0.38835668,113530.0,113520.0,0.07992007]
[1755841787947,0.36928048,113530.0,113520.0,0.07992007]
[1755841788184,0.35479111,113530.0,113520.0,0.07992007]
[1755841788393,0.341,113530.0,113520.0,0.07992007]
[1755841788791,0.34,113530.0,113520.0,0.07992007]
[1755841789075,0.341,113530.0,113520.0,0.07579139]
[1755841789976,0.34,113530.0,113520.0,0.07579139]
[1755841791064,0.34,113530.0,113520.0,0.07779139]
[1755841791311,0.3537899,113530.0,113520.0,0.07779139]
[1755841791834,0.3537899,113530.0,113520.0,0.07879139]
[1755841803601,0.3537899,113530.0,113520.0,0.09624041]
[1755841806192,0.18658462,113530.0,113520.0,0.09624041]
[1755841808789,0.18658462,113530.0,113520.0,0.09581802]
[1755841809135,0.14832,113540.0,113520.0,0.09581802]
[1755841809336,0.14832,113540.0,113530.0,0.00301]
[1755841809753,0.16210899,113540.0,113530.0,0.03787332]
[1755841810044,0.16210899,113540.0,113530.0,0.07106592]
[1755841810265,0.16210899,113540.0,113530.0,0.06805592]
[1755841810472,0.16210899,113540.0,113530.0,0.07106592]
[1755841811236,0.50210899,113540.0,113530.0,0.07106592]
[1755841811628,0.50210899,113540.0,113530.0,0.07206592]
[1755841813231,0.50210899,113540.0,113530.0,0.07413592]
[1755841821041,0.50210899,113540.0,113530.0,0.07206592]
[1755841821453,0.50210899,113540.0,113530.0,0.06905592]
[1755841821673,0.50210899,113540.0,113530.0,0.07229592]
[1755841821879,0.50210899,113540.0,113530.0,0.07440592]
[1755841825596,0.35378899,113540.0,113530.0,0.07440592]
[1755841825798,0.35378899,113540.0,113530.0,0.07444592]
[1755841826742,0.35378899,113540.0,113530.0,0.07544592]
[1755841826948,0.35378899,113540.0,113530.0,0.07444592]
[1755841827149,0.35378899,113540.0,113530.0,0.07544592]
[1755841827783,0.35378899,113540.0,113530.0,0.07444592]
[1755841827912,0.35378899,113540.0,113530.0,0.07644592]
[1755841834282,0.18634441,113540.0,113530.0,0.07644592]
[1755841834497,0.20013321,113540.0,113530.0,0.07644592]
[1755841835668,0.20013321,113540.0,113530.0,0.07433592]
[1755841837220,0.20013321,113540.0,113530.0,0.07644592]
[1755841838978,0.20013321,113540.0,113530.0,0.07864798]
[1755841839366,0.20013321,113540.0,113530.0,0.07844806]
[1755841839701,0.20013321,113540.0,113530.0,0.076246]
[1755841840104,0.20013321,113540.0,113530.0,0.07844806]
[1755841841604,0.20013321,113540.0,113530.0,0.076246]
[1755841843587,0.20013321,113540.0,113530.0,0.074136]
[1755841843824,0.20013321,113540.0,113530.0,0.07844806]
[1755841844230,0.20013321,113540.0,113530.0,0.076246]
[1755841847552,0.20013321,113540.0,113530.0,0.074136]
[1755841848533,0.20013321,113540.0,113530.0,0.076246]
[1755841848656,0.20013321,113540.0,113530.0,0.074136]
[1755841851499,0.20013321,113540.0,113530.0,0.0641984]
[1755841860530,0.25974451,113540.0,113530.0,0.029535]
[1755841860736,0.23367942,113540.0,113530.0,0.0641984]
[1755841860971,0.21989062,113540.0,113530.0,0.0641984]
[1755841861191,0.21989147,113540.0,113530.0,0.0641984]
[1755841861806,0.21989147,113540.0,113530.0,0.0611984]
[1755841862214,0.21989147,113540.0,113530.0,0.0621984]
[1755841863998,0.23367009,113540.0,113530.0,0.0621984]
[1755841864217,0.21460469,113540.0,113530.0,0.027535]
[1755841864427,0.23365552,113540.0,113530.0,0.027535]
[1755841864688,0.23365552,113540.0,113530.0,0.0621984]
[1755841865624,0.23365552,113540.0,113530.0,0.0611984]
[1755841865897,0.23465552,113540.0,113530.0,0.026535]
[1755841866110,0.22086555,113540.0,113530.0,0.06731824]
[1755841866938,0.22086555,113540.0,113530.0,0.0611984]
[1755841867160,0.22086242,113540.0,113530.0,0.0611984]
[1755841867379,0.22086007,113540.0,113530.0,0.0611984]
[1755841867538,0.22086007,113540.0,113530.0,0.026535]
[1755841867744,0.22086007,113540.0,113530.0,0.0611984]
[1755841868131,0.22085957,113540.0,113530.0,0.0611984]
[1755841869324,0.23464943,113540.0,113530.0,0.0611984]
[1755841870033,0.19650502,113540.0,113530.0,0.0664084]
[1755841870233,0.51125548,113540.0,113530.0,0.0664084]
[1755841870670,0.51125548,113540.0,113530.0,0.0642984]
[1755841870876,0.51125548,113540.0,113530.0,0.0611984]
[1755841871156,0.53649364,113540.0,113530.0,0.0611984]
[1755841871953,0.53649364,113540.0,113530.0,0.026535]
[1755841873219,0.5364937,113540.0,113530.0,0.026535]
[1755841874158,0.34,113530.0,113510.0,0.0031]
[1755841874373,0.34,113530.0,113520.0,0.0398734]
[1755841874374,2.651144,113530.0,113520.0,0.0398734]
[1755841874583,0.4882,113530.0,113520.0,0.11031144]
[1755841876308,0.15024,113530.0,113520.0,0.11031144]
[1755841876526,0.99024,113530.0,113520.0,0.11031144]
[1755841876756,2.653184,113530.0,113520.0,0.12409278]
[1755841876969,0.49024,113530.0,113520.0,0.12409278]
[1755841877172,0.49024,113530.0,113520.0,0.11031144]
[1755841878113,0.49024,113530.0,113520.0,0.11131144]
[1755841882571,0.50403088,113530.0,113520.0,0.11131144]
[1755841883548,0.51229801,113530.0,113520.0,0.11131144]
[1755841884351,0.51229801,113530.0,113520.0,0.0356634]
[1755841885210,0.53135,113530.0,113520.0,0.0387834]
[1755841885501,0.53135,113530.0,113520.0,0.0377834]
[1755841885715,0.52408287,113530.0,113520.0,0.00312]
[1755841885891,0.53235183,113530.0,113520.0,0.0377834]
[1755841886139,0.51856095,113530.0,113520.0,0.0377834]
[1755841886464,0.51856095,113530.0,113520.0,0.00312]
[1755841886668,0.34,113520.0,113510.0,0.026502]
[1755841886802,0.34,113520.0,113510.0,0.0611654]
[1755841887005,0.34,113520.0,113510.0,0.0642854]
[1755841887207,0.34,113520.0,113510.0,0.0663654]
[1755841887918,0.34,113520.0,113510.0,0.0673654]
[1755841888694,0.34,113520.0,113510.0,0.032702]
[1755841889129,0.35379128,113520.0,113510.0,0.032702]
[1755841890372,0.35379128,113520.0,113510.0,0.0673654]
[1755841890961,0.35379128,113520.0,113510.0,0.032702]
[1755841891597,0.35379128,113520.0,113510.0,0.030622]
[1755841892641,0.35379128,113520.0,113510.0,0.001]
[1755841892847,0.35379128,113520.0,113510.0,0.0356634]
[1755841893249,0.35379128,113520.0,113510.0,0.001]
[1755841894638,0.35379128,113520.0,113510.0,0.0356634]
[1755841894856,0.41432264,113520.0,113510.0,0.0356634]
[1755841895061,0.37906001,113520.0,113510.0,0.0356634]
[1755841895278,0.38733414,113520.0,113510.0,0.0356634]
[1755841895483,0.38733414,113520.0,113510.0,0.0346634]
[1755841896126,0.38833414,113520.0,113510.0,0.0346634]
[1755841896943,0.38833414,113520.0,113500.0,0.029623]
[1755841897150,0.48972,113510.0,113500.0,0.02976749]
[1755841897395,0.48972,113510.0,113500.0,0.06443089]
[1755841897727,0.48972,113510.0,113500.0,0.06651089]
[1755841898403,0.48972,113510.0,113500.0,0.06751089]
[1755841901154,0.48972,113510.0,113500.0,0.06543089]
[1755841901827,0.48972,113510.0,113500.0,0.00114449]
[1755841902038,0.48972,113510.0,113500.0,0.03580789]
[1755841902817,0.48972,113510.0,113500.0,0.03892789]
[1755841903686,0.48972,113510.0,113500.0,0.04100789]
[1755841903923,0.34,113510.0,113500.0,0.04775918]
[1755841904125,0.48964,113510.0,113500.0,0.04775918]
[1755841904332,0.48964,113510.0,113500.0,0.04100789]
[1755841905357,0.32768823,113510.0,113500.0,0.04100789]
[1755841909236,0.34148123,113510.0,113500.0,0.03892789]
[1755841909658,0.34148123,113510.0,113500.0,0.04097789]
[1755841910132,0.34148123,113510.0,113500.0,0.03892789]
[1755841910340,0.34148123,113510.0,113500.0,0.03580789]
[1755841910895,0.36847008,113510.0,113490.0,0.026505]
[1755841911074,0.34,113490.0,113480.0,0.10822144]
[1755841911287,0.1496,113490.0,113480.0,0.07560804]
[1755841911670,0.1496,113490.0,113480.0,0.11027144]
[1755841911895,0.1633944,113490.0,113480.0,0.11027144]
[1755841912277,0.1633944,113490.0,113480.0,0.07560804]
[1755841912488,0.1633944,113490.0,113480.0,0.11027144]
[1755841912698,0.1633944,113490.0,113480.0,0.11127144]
[1755841913306,0.5033944,113490.0,113480.0,0.11127144]
[1755841913942,0.5033944,113490.0,113480.0,0.11227144]
[1755841919171,0.5033944,113490.0,113480.0,0.0418334]
[1755841922526,0.5033944,113490.0,113480.0,0.00717]
[1755841922755,0.5033944,113490.0,113480.0,0.0418334]
[1755841923104,0.5033944,113490.0,113480.0,0.00717]
[1755841923283,0.5033944,113490.0,113480.0,0.0418334]
[1755841927967,0.5033944,113490.0,113480.0,0.00717]
[1755841928148,0.5033944,113490.0,113480.0,0.00512]
[1755841928409,0.5033944,113490.0,113480.0,0.0366634]
[1755841929225,0.4896,113490.0,113480.0,0.0366634]
[1755841930002,0.4896,113490.0,113480.0,0.0356634]
[1755841930899,0.4896,113490.0,113480.0,0.001]
[1755841931113,0.50339514,113490.0,113480.0,0.0346634]
[1755841933347,0.34,113480.0,113470.0,0.0377834]
[1755841933560,0.34,113480.0,113470.0,0.0398334]
[1755841934182,0.34,113480.0,113470.0,0.00517]
[1755841934397,0.34,113480.0,113470.0,0.00312]
[1755841934616,0.34,113480.0,113470.0,0.0356634]
[1755841934824,0.34,113480.0,113470.0,0.0397834]
[1755841935265,0.34,113480.0,113470.0,0.05725135]
[1755841935476,0.34,113480.0,113470.0,0.05625135]
[1755841936908,0.04030614,113490.0,113470.0,0.05525135]
[1755841937112,0.52962614,113490.0,113480.0,0.0376034]
[1755841937317,5.52962614,113490.0,113480.0,0.0396134]
[1755841938192,5.53062614,113490.0,113480.0,0.0396134]
[1755841938625,5.52962614,113490.0,113480.0,0.0376034]
[1755841939009,5.52962614,113490.0,113480.0,0.00294]
[1755841939284,5.52962614,113490.0,113480.0,0.0346634]
[1755841940821,0.34,113480.0,113470.0,0.0346634]
[1755841941034,5.34,113480.0,113470.0,0.0366734]
[1755841941243,0.34,113480.0,113470.0,0.0366734]
[1755841941424,0.34,113480.0,113470.0,0.0396134]
[1755841942009,0.18962614,113490.0,113480.0,0.0346634]
[1755841942212,5.52962614,113490.0,113480.0,0.0346634]
[1755841942871,0.34,113480.0,113470.0,0.00394]
[1755841943079,5.34,113480.0,113470.0,0.0396034]
[1755841943217,0.34,113480.0,113470.0,0.0396034]
[1755841943442,0.34,113480.0,113470.0,0.0386034]
[1755841944003,0.18962614,113490.0,113480.0,0.0346634]
[1755841944215,5.54868791,113490.0,113480.0,0.0346634]
[1755841944420,0.34,113480.0,113470.0,0.0376034]
[1755841944608,5.34,113480.0,113470.0,0.0386034]
[1755841944812,0.34,113480.0,113470.0,0.0386034]
[1755841945025,0.34,113480.0,113470.0,0.0416134]
[1755841945172,0.34,113480.0,113470.0,0.0406134]
[1755841945997,0.52962614,113490.0,113480.0,0.0346634]
[1755841946199,5.5486878,113490.0,113480.0,0.0346634]
[1755841946396,0.34,113480.0,113470.0,0.00394]
[1755841946603,5.34,113480.0,113470.0,0.0406134]
[1755841946798,0.34,113480.0,113470.0,0.0406134]
[1755841947257,0.34,113480.0,113470.0,0.0396134]
[1755841947677,0.18962614,113490.0,113480.0,0.0346634]
[1755841947860,5.54868832,113490.0,113480.0,0.0346634]
[1755841950605,0.34,113480.0,113470.0,0.0376034]
[1755841950808,5.34,113480.0,113470.0,0.0396134]
[1755841951011,0.34,113480.0,113470.0,0.0396134]
[1755841951842,0.34,113480.0,113470.0,0.0406134]
[1755841952460,0.34,113480.0,113470.0,0.0416134]
[1755841953484,0.04030614,113490.0,113480.0,0.0346634]
[1755841953693,5.54865286,113490.0,113480.0,0.0396134]
[1755841953895,5.52214186,113490.0,113480.0,0.0396134]
[1755841954100,5.50307514,113490.0,113480.0,0.0396134]
[1755841954329,5.50307514,113490.0,113480.0,0.04642564]
[1755841954506,0.35379514,113490.0,113480.0,0.04642564]
[1755841955342,0.35379514,113490.0,113480.0,0.07293364]
[1755841956151,0.35379514,113490.0,113480.0,0.0661214]
[1755841956663,0.35379514,113490.0,113480.0,0.06832443]
[1755841958412,0.35379514,113490.0,113480.0,0.0661214]
[1755841959411,0.35379514,113490.0,113480.0,0.06832443]
[1755841962089,0.35379514,113490.0,113480.0,0.0661214]
[1755841962292,0.35379514,113490.0,113480.0,0.13397959]
[1755841964398,0.35379514,113490.0,113480.0,0.13497959]
[1755841965180,0.35379514,113490.0,113480.0,0.13397959]
[1755841965588,0.35379514,113490.0,113480.0,0.13597959]
[1755841965939,0.35379514,113490.0,113480.0,0.13397959]
[1755841966083,0.35379514,113490.0,113480.0,0.13597959]
[1755841966295,0.35379514,113490.0,113480.0,0.13797959]
[1755841967614,0.35379514,113490.0,113480.0,0.40467959]
[1755841967787,0.35379514,113490.0,113480.0,0.40247656]
[1755841972010,0.01379514,113490.0,113480.0,0.40247656]
[1755841972441,0.35379514,113490.0,113480.0,0.40247656]
[1755841972623,0.01379514,113490.0,113480.0,0.40247656]
[1755841975753,0.34,113500.0,113480.0,0.40247656]
[1755841975956,0.34,113500.0,113490.0,0.18806906]
[1755841976088,0.34,113500.0,113490.0,0.24405762]
[1755841976703,0.14908477,113510.0,113490.0,0.24405762]
[1755841976704,0.48908477,113510.0,113500.0,0.05211242]
[1755841976901,0.34008477,113510.0,113500.0,0.05721242]
[1755841977365,0.34008477,113510.0,113500.0,0.05941506]
[1755841977569,0.34008477,113510.0,113500.0,0.08591706]
[1755841977774,0.34008477,113510.0,113500.0,0.14160819]
[1755841979088,0.35387684,113510.0,113500.0,0.14160819]
[1755841981898,0.35387684,113510.0,113500.0,0.14260819]
[1755841983110,0.35387684,113510.0,113500.0,0.14360819]
[1755841985135,0.35387684,113510.0,113500.0,0.14140555]
[1755841985563,0.35387684,113510.0,113500.0,0.08571442]
[1755841987726,0.35387684,113510.0,113500.0,0.08791706]
[1755841987937,0.35387684,113510.0,113500.0,0.08571442]
[1755841989365,0.35387684,113510.0,113500.0,0.08061442]
[1755841989572,0.35387684,113510.0,113500.0,0.08365442]
[1755841989783,0.36305308,113510.0,113500.0,0.13564986]
[1755841989975,0.36305308,113510.0,113500.0,0.13358986]
[1755841990183,0.36305308,113510.0,113500.0,0.08365442]
[1755841991565,0.36305308,113510.0,113500.0,0.08061442]
[1755841991766,0.36305308,113510.0,113500.0,0.08365442]
[1755841992461,0.36305308,113510.0,113500.0,0.08061442]
[1755841993082,0.51189308,113510.0,113500.0,0.08061442]
[1755841993693,0.36305308,113510.0,113500.0,0.08061442]
[1755841993901,0.51189308,113510.0,113500.0,0.08061442]
[1755841994890,0.51189308,113510.0,113500.0,0.10689586]
[1755841995058,0.51189308,113510.0,113500.0,0.08061442]
[1755841996457,0.51189308,113510.0,113500.0,0.05411242]
[1755841997693,0.51189308,113510.0,113500.0,0.05705242]
[1755841999402,0.51189308,113510.0,113500.0,0.05912242]
[1755842000607,0.50271684,113510.0,113500.0,0.05912242]
[1755842000809,0.51174868,113510.0,113500.0,0.05912242]
[1755842001005,0.51174868,113510.0,113500.0,0.08256076]
[1755842001241,0.51174868,113510.0,113500.0,0.05912242]
[1755842001597,0.36290868,113510.0,113500.0,0.05912242]
[1755842009059,0.36290868,113510.0,113500.0,0.05411242]
[1755842011794,0.36290868,113510.0,113500.0,0.0366634]
[1755842012603,0.02282391,113510.0,113500.0,0.0366634]
[1755842012812,0.02282391,113510.0,113500.0,0.05814584]
[1755842013156,0.02282391,113510.0,113500.0,0.0366634]
[1755842013813,0.02282391,113510.0,113500.0,0.0396034]
[1755842014724,0.36282391,113510.0,113500.0,0.0396034]
[1755842015699,0.36282391,113510.0,113500.0,0.0416734]
[1755842016613,0.36282391,113510.0,113500.0,0.05912242]
[1755842018328,0.36282391,113510.0,113500.0,0.10922676]
[1755842019634,0.36282391,113510.0,113500.0,0.05912242]
[1755842021864,0.36282391,113510.0,113500.0,0.05705242]
[1755842025138,0.36282391,113510.0,113500.0,0.05912242]
[1755842027675,0.36282391,113510.0,113500.0,0.05705242]
[1755842027807,0.36282391,113510.0,113500.0,0.02238902]
[1755842028047,0.36282391,113510.0,113500.0,0.05705242]
[1755842029925,0.36282391,113510.0,113500.0,0.002]
[1755842030136,0.36282391,113510.0,113500.0,0.0366634]
[1755842033864,0.36282391,113510.0,113500.0,0.002]
[1755842034081,0.36282391,113510.0,113500.0,0.0366634]
[1755842035979,0.34903184,113510.0,113500.0,0.0356634]
[1755842036428,0.36282439,113510.0,113500.0,0.0356634]
[1755842036637,0.34903184,113510.0,113500.0,0.0356634]
[1755842037666,0.34903184,113510.0,113500.0,0.0346634]
[1755842037881,0.34903184,113510.0,113490.0,0.00314]
[1755842038017,0.4886,113500.0,113490.0,0.00314]
[1755842039048,0.4886,113500.0,113490.0,0.0378034]
[1755842039479,0.1486,113500.0,113490.0,0.0388034]
[1755842040239,0.16239314,113500.0,113490.0,0.0398034]
[1755842042807,0.16239314,113500.0,113490.0,0.00514]
[1755842043011,0.18128295,113500.0,113490.0,0.0366634]
[1755842043235,0.01379314,113500.0,113490.0,0.0418234]
[1755842043462,0.01379314,113500.0,113490.0,0.06147525]
[1755842046401,0.01379314,113500.0,113490.0,0.05927242]
[1755842047497,0.01379314,113500.0,113490.0,0.32597242]
[1755842048138,0.01379314,113500.0,113490.0,0.35247442]
[1755842048349,0.01379314,113500.0,113490.0,0.40962567]
[1755842048560,0.00910027,113510.0,113500.0,0.01744902]
[1755842048774,0.34,113520.0,113510.0,0.0346634]
[1755842048983,0.34,113520.0,113510.0,0.0398234]
[1755842049850,0.34902622,113520.0,113510.0,0.0398234]
[1755842050068,0.34902622,113520.0,113510.0,0.06041064]
[1755842050632,0.35002622,113520.0,113510.0,0.06041064]
[1755842051258,0.36381767,113520.0,113510.0,0.06041064]
[1755842051917,0.36481767,113520.0,113510.0,0.06041064]
[1755842052121,0.36381767,113520.0,113510.0,0.06041064]
[1755842052643,0.36281767,113520.0,113510.0,0.06041064]
[1755842054441,0.01379145,113520.0,113510.0,0.06041064]
[1755842054646,0.35379145,113520.0,113510.0,0.06261308]
[1755842054821,0.01379145,113520.0,113510.0,0.06261308]
[1755842055027,0.85379145,113520.0,113510.0,0.06261308]
[1755842055241,5.35379145,113520.0,113510.0,0.06261308]
[1755842055448,0.35379145,113520.0,113510.0,0.06261308]
[1755842056808,0.35379145,113520.0,113510.0,0.06361308]
[1755842057982,0.35379145,113520.0,113510.0,0.06141064]
[1755842058127,0.35379145,113520.0,113510.0,0.06361308]
[1755842058539,0.35379145,113520.0,113510.0,0.06461308]
[1755842061228,0.35379145,113520.0,113510.0,0.07985966]
[1755842061448,0.36259382,113520.0,113510.0,0.0820621]
[1755842062457,0.36259382,113520.0,113510.0,0.08426454]
[1755842062663,0.02259382,113520.0,113510.0,0.08426454]
[1755842062868,0.02259382,113520.0,113510.0,0.11076254]
[1755842063101,0.02259382,113520.0,113510.0,0.37746254]
[1755842063302,0.02259382,113520.0,113510.0,0.37305766]
[1755842069229,0.02259382,113520.0,113510.0,0.52161766]
[1755842080449,0.02259382,113520.0,113510.0,0.10635766]
[1755842080685,0.02259382,113520.0,113510.0,0.22913042]
[1755842082245,0.00880237,113520.0,113510.0,0.22913042]
[1755842082690,0.34,113530.0,113510.0,0.22913042]
[1755842082942,0.3400848,113530.0,113510.0,0.22913042]
[1755842083610,0.3400848,113530.0,113510.0,0.22813042]
[1755842083908,0.3400848,113530.0,113520.0,0.0346634]
[1755842084758,0.3400848,113530.0,113510.0,0.19246702]
[1755842084969,0.3400848,113530.0,113520.0,0.0346634]
[1755842085392,0.3400848,113530.0,113500.0,0.21895804]
[1755842085574,0.38037541,113530.0,113520.0,0.0346634]
[1755842086542,0.38935813,113530.0,113520.0,0.0346634]
[1755842088375,0.37556752,113530.0,113520.0,0.0346634]
[1755842090044,0.38935838,113530.0,113520.0,0.0346634]
[1755842092316,0.38935838,113530.0,113500.0,0.51539804]
[1755842092527,0.38935838,113530.0,113520.0,0.0346634]
[1755842096408,0.38935838,113530.0,113510.0,0.00322]
[1755842096623,0.38935838,113530.0,113520.0,0.0346634]
[1755842097364,0.38935838,113530.0,113520.0,0.0399634]
[1755842099946,0.38935838,113530.0,113520.0,0.0346634]
[1755842101507,0.38935838,113530.0,113520.0,0.0399634]
[1755842106834,0.53783838,113530.0,113520.0,0.0399634]
[1755842114183,0.54611811,113530.0,113520.0,0.0399634]
[1755842116730,0.51961811,113530.0,113520.0,0.0399634]
[1755842118544,0.51133838,113530.0,113520.0,0.0399634]
[1755842118777,0.51961818,113530.0,113520.0,0.0399634]
[1755842121830,0.37113828,113530.0,113520.0,0.0399634]
[1755842122033,0.51957828,113530.0,113520.0,0.0399634]
[1755842122398,0.51957828,113530.0,113520.0,0.0378834]
[1755842122800,0.51957828,113530.0,113520.0,0.0399834]
[1755842127299,0.51957828,113530.0,113520.0,0.0346634]
[1755842127915,0.51129838,113530.0,113520.0,0.0346634]
[1755842128062,0.51957953,113530.0,113520.0,0.0377934]
[1755842128474,0.51957955,113530.0,113520.0,0.0377934]
[1755842130096,0.51957955,113530.0,113520.0,0.0398934]
[1755842134109,0.51957969,113530.0,113520.0,0.0398934]
[1755842135732,0.15672131,113530.0,113520.0,0.0398934]
[1755842136971,0.16580115,113530.0,113520.0,0.0398934]
[1755842137169,0.16580112,113530.0,113520.0,0.0398934]
[1755842138196,0.50580112,113530.0,113520.0,0.0398934]
[1755842139213,0.51959147,113530.0,113520.0,0.0398934]
[1755842143516,0.51959145,113530.0,113520.0,0.0398934]
[1755842144221,0.54609045,113530.0,113520.0,0.0398934]
[1755842144445,0.54609045,113530.0,113520.0,0.0377934]
[1755842145591,0.56517065,113530.0,113520.0,0.0377934]
[1755842149186,0.56517065,113530.0,113520.0,0.0397734]
[1755842150733,0.56517054,113530.0,113520.0,0.0397734]
[1755842153409,0.56513054,113530.0,113520.0,0.0397734]
[1755842155791,0.55684928,113530.0,113520.0,0.0397734]
[1755842155997,0.56513058,113530.0,113520.0,0.0397734]
[1755842156201,0.55684928,113530.0,113520.0,0.0397734]
[1755842156403,0.56513058,113530.0,113520.0,0.0397734]
[1755842160586,0.56513058,113530.0,113520.0,0.0377934]
[1755842161665,0.56513058,113530.0,113520.0,0.0346634]
[1755842161874,0.56513058,113530.0,113520.0,0.0378834]
[1755842162081,0.56513058,113530.0,113520.0,0.0398634]
[1755842162493,0.56513058,113530.0,113520.0,0.0378834]
[1755842163375,0.56513058,113530.0,113520.0,0.0398634]
[1755842164397,0.56513059,113530.0,113520.0,0.0398634]
[1755842164771,0.55684928,113530.0,113520.0,0.0398634]
[1755842164972,0.56513058,113530.0,113520.0,0.0398634]
[1755842166149,0.54605049,113530.0,113520.0,0.0398634]
[1755842166363,0.51127019,113530.0,113520.0,0.0398634]
[1755842167712,0.51127019,113530.0,113520.0,0.0408634]
[1755842167905,0.51127019,113530.0,113520.0,0.0418634]
[1755842168148,0.51127019,113530.0,113520.0,0.04626998]
[1755842169186,0.53776819,113530.0,113520.0,0.04626998]
[1755842172634,0.18868835,113530.0,113520.0,0.04626998]
[1755842173821,0.20478091,113530.0,113520.0,0.04626998]
[1755842174696,0.54478091,113530.0,113520.0,0.04626998]
[1755842189510,0.39638091,113530.0,113520.0,0.04626998]
[1755842189732,0.39638091,113530.0,113520.0,0.063719]
[1755842189987,0.38259056,113530.0,113520.0,0.063719]
[1755842192482,0.39637918,113530.0,113520.0,0.063719]
[1755842192924,0.05637918,113530.0,113520.0,0.063719]
[1755842193155,0.02988118,113530.0,113520.0,0.21420125]
[1755842193376,0.02988118,113530.0,113520.0,0.211999]